bitfinex/quotes_SOLUSD_20260310
["timestamp","ask_amount","ask_price","bid_price","bid_amount"]
[1773180282229,3.69383402,85.666,85.603,2.11711918]
[1773180282432,4.1841285,85.64,85.603,2.11711918]
[1773180282643,4.1841285,85.62,85.6,0.2]
[1773180283009,11.67965054,85.619,85.6,0.2]
[1773180283209,7.87796252,85.68,85.601,2.11711918]
[1773180283425,4.1841285,85.64,85.601,2.11711918]
[1773180283620,11.22719698,85.63,85.601,2.11711918]
[1773180283826,0.14216157,85.649,85.603,2.11711918]
[1773180284140,11.22719698,85.64,85.603,2.11711918]
[1773180286633,11.67692289,85.639,85.603,2.11711918]
[1773180287531,11.67692289,85.639,85.605,2.11711918]
[1773180287748,11.6750143,85.653,85.61,11.22719698]
[1773180287916,11.22719698,85.65,85.611,2.11711918]
[1773180288823,11.67555955,85.649,85.611,13.79775622]
[1773180289034,40.86445842,85.649,85.612,2.11711918]
[1773180291427,11.22719698,85.63,85.601,2.11711918]
[1773180291640,11.22912329,85.63,85.601,2.11711918]
[1773180293353,11.67828656,85.629,85.601,2.11711918]
[1773180295747,40.87400296,85.629,85.601,2.11711918]
[1773180296633,11.22912329,85.62,85.572,29.21511238]
[1773180296833,11.22912329,85.62,85.591,2.11711918]
[1773180297349,40.87400296,85.629,85.591,2.11711918]
[1773180298325,11.67705924,85.638,85.611,2.11711918]
[1773180298531,11.67705924,85.638,85.573,3.69383402]
[1773180298532,2.00395681,85.629,85.581,40.89671196]
[1773180298754,2.00395681,85.629,85.59,11.22912329]
[1773180298962,13.2330801,85.62,85.581,11.68483658]
[1773180299136,2.00395681,85.619,85.581,11.68483658]
[1773180299337,2.00395681,85.619,85.59,11.22912329]
[1773180299557,11.22912329,85.62,85.58,0.2]
[1773180299558,2.00395681,85.599,85.58,0.2]
[1773180300164,3.69383402,85.635,85.58,0.2]
[1773180300365,2.00395681,85.607,85.58,0.2]
[1773180300854,2.00395681,85.607,85.58,11.88486662]
[1773180301055,2.00395681,85.607,85.58,13.85276853]
[1773180301632,2.00395681,85.607,85.581,1.96790191]
[1773180301841,2.00395681,85.619,85.591,1.96790191]
[1773180302444,11.22912329,85.61,85.581,1.96790191]
[1773180302846,2.00395681,85.611,85.581,1.96790191]
[1773180303860,22.91000169,85.61,85.583,1.96790191]
[1773180304157,11.6808784,85.61,85.583,1.96790191]
[1773180307158,2.00395681,85.609,85.58,0.2]
[1773180307358,2.00395681,85.609,85.581,1.96790191]
[1773180307558,2.00395681,85.617,85.581,1.96790191]
[1773180308565,11.67978696,85.618,85.591,1.96790191]
[1773180310172,2.00395681,85.617,85.591,1.96790191]
[1773180310691,11.6800598,85.616,85.591,13.65127852]
[1773180310898,11.6800598,85.616,85.544,61.8]
[1773180310899,2.00395681,85.599,85.553,7.41662396]
[1773180311073,2.00395681,85.599,85.55,0.2]
[1773180311074,4.19312407,85.57,85.55,0.2]
[1773180311475,4.19312407,85.58,85.551,1.96790191]
[1773180311679,6.19708088,85.57,85.55,0.2]
[1773180311884,2.00395681,85.569,85.55,0.2]
[1773180313091,11.68661181,85.568,85.55,0.2]
[1773180313994,2.00395681,85.559,85.54,0.2]
[1773180314997,11.68797774,85.558,85.54,0.2]
[1773180315798,2.00395681,85.549,85.518,1.96790191]
[1773180315998,4.19312407,85.54,85.518,1.96790191]
[1773180317198,11.69057389,85.539,85.518,1.96790191]
[1773180317600,11.69057389,85.539,85.51,4.39312407]
[1773180317601,4.19312407,85.53,85.51,0.2]
[1773180317810,2.00395681,85.529,85.51,0.2]
[1773180318684,2.00395681,85.529,85.497,11.69628538]
[1773180318685,4.19312407,85.52,85.497,1.96790191]
[1773180319294,2.09641008,85.527,85.497,13.66419315]
[1773180319493,4.19312407,85.52,85.497,1.96790191]
[1773180319692,2.09641008,85.527,85.5,2.12356543]
[1773180319996,13.78848752,85.528,85.501,1.92356543]
[1773180320508,2.09641008,85.519,85.5,0.2]
[1773180320703,11.69207744,85.528,85.501,1.92356543]
[1773180320893,4.19312407,85.53,85.501,1.92356543]
[1773180321090,11.69154514,85.532,85.501,1.92356543]
[1773180321293,4.19312407,85.53,85.503,1.92356543]
[1773180321803,6.28953415,85.53,85.503,1.92356543]
[1773180322113,2.09641008,85.529,85.503,1.92356543]
[1773180322808,2.09641008,85.519,85.5,0.2]
[1773180323308,2.09641008,85.517,85.5,0.2]
[1773180323720,11.69098391,85.536,85.502,1.92356543]
[1773180324002,6.28953415,85.53,85.502,1.92356543]
[1773180325500,11.69194074,85.529,85.502,1.92356543]
[1773180326203,11.69194074,85.529,85.504,1.92356543]
[1773180326722,13.78835082,85.529,85.504,1.92356543]
[1773180328600,13.78835082,85.529,85.506,1.92356543]
[1773180328805,13.78835082,85.529,85.505,11.6952225]
[1773180328806,11.68975393,85.545,85.511,1.92356543]
[1773180329203,4.19312407,85.54,85.511,1.92356543]
[1773180329723,6.28953415,85.54,85.511,1.92356543]
[1773180331112,6.28953415,85.54,85.5,29.4394881]
[1773180331113,2.09641008,85.519,85.5,0.2]
[1773180332119,2.09641008,85.535,85.501,11.69576964]
[1773180332326,3.69383402,85.554,85.502,1.92356543]
[1773180332327,2.09641008,85.533,85.502,1.92356543]
[1773180332509,2.09641008,85.529,85.5,11.45722335]
[1773180332705,2.09641008,85.529,85.5,0.2]
[1773180332918,1.46115091,85.549,85.501,1.92356543]
[1773180333133,1.46115091,85.549,85.5,0.2]
[1773180333134,3.49,86.812,85.5,0.2]
[1773180333135,2.09641008,85.589,85.55,11.25722335]
[1773180333315,2.09641008,85.589,85.56,11.25722335]
[1773180333626,40.87973181,85.617,85.534,1.92356543]
[1773180333627,2.09641008,85.569,85.534,1.92356543]
[1773180333827,2.09641008,85.559,85.526,1.92356543]
[1773180334012,2.09641008,85.557,85.526,1.92356543]
[1773180334626,2.09641008,85.557,85.522,1.92356543]
[1773180336531,1.45550259,85.558,85.51,29.23621861]
[1773180336532,2.09641008,85.549,85.514,13.61742503]
[1773180336730,13.35363343,85.54,85.514,13.61742503]
[1773180337408,2.09641008,85.539,85.514,13.61742503]
[1773180337615,2.09641008,85.539,85.514,11.6938596]
[1773180338437,2.09641008,85.539,85.509,11.69460167]
[1773180340412,2.09641008,85.529,85.5,0.2]
[1773180340617,2.09641008,85.519,85.5,0.2]
[1773180342720,2.09641008,85.519,85.501,11.69576964]
[1773180342933,11.25722335,85.52,85.501,13.61933507]
[1773180343142,2.09641008,85.527,85.501,11.69576964]
[1773180346726,2.09641008,85.527,85.502,1.92356543]
[1773180347951,11.25722335,85.52,85.502,1.92356543]
[1773180348126,13.3459319,85.52,85.501,11.69576964]
[1773180348629,2.08870855,85.509,85.491,11.69713771]
[1773180350040,2.06141028,85.517,85.492,2.04223933]
[1773180350245,11.25722335,85.52,85.492,2.04223933]
[1773180350746,13.31863363,85.52,85.493,11.69686407]
[1773180350938,13.31863363,85.52,85.493,13.7391034]
[1773180351348,2.06141028,85.519,85.493,42.98126357]
[1773180353435,11.25861955,85.51,85.493,42.98126357]
[1773180353631,2.06141028,85.509,85.493,11.69686407]
[1773180354348,2.06141028,85.518,85.494,2.04223933]
[1773180354849,2.06141028,85.518,85.493,11.69686407]
[1773180356033,2.06141028,85.518,85.493,13.7391034]
[1773180356352,2.06141028,85.518,85.494,2.04223933]
[1773180358751,2.06141028,85.517,85.491,11.69713771]
[1773180359053,13.32002983,85.51,85.491,11.69713771]
[1773180359632,2.06141028,85.519,85.491,40.93998198]
[1773180359834,2.06141028,85.519,85.491,42.98222131]
[1773180360340,1.45550259,85.529,85.501,2.04223933]
[1773180360548,2.06141028,85.535,85.501,2.04223933]
[1773180360741,2.06141028,85.535,85.502,40.93471497]
[1773180360942,2.06141028,85.557,85.521,2.04223933]
[1773180361148,2.06141028,85.569,85.531,2.04223933]
[1773180361348,2.06141028,85.569,85.502,40.93471497]
[1773180361349,1.45550259,85.568,85.541,2.04223933]
[1773180361549,2.06141028,85.569,85.541,2.04223933]
[1773180361767,2.06141028,85.567,85.533,2.04223933]
[1773180363269,2.06141028,85.567,85.502,100.5824425]
[1773180363270,2.06141028,85.567,85.541,2.04223933]
[1773180363568,11.25861955,85.57,85.541,2.04223933]
[1773180363962,13.32002983,85.57,85.541,2.04223933]
[1773180364262,2.06141028,85.569,85.542,11.69016389]
[1773180364869,2.06141028,85.569,85.542,13.73240322]
[1773180365045,2.06141028,85.569,85.543,2.04223933]
[1773180366462,2.06141028,85.568,85.544,11.68989058]
[1773180366653,2.06141028,85.566,85.543,11.68995814]
[1773180366847,0.14216157,85.565,85.543,11.68995814]
[1773180367049,2.20357185,85.565,85.543,11.68995814]
[1773180368667,2.20357185,85.565,85.536,2.04223933]
[1773180368872,2.06141028,85.559,85.524,31.27378916]
[1773180369054,2.06141028,85.559,85.525,40.92370651]
[1773180369252,2.06141028,85.539,85.505,13.73746183]
[1773180369463,13.32002983,85.52,85.505,11.6952225]
[1773180369664,2.06141028,85.519,85.493,11.69686407]
[1773180369858,11.25861955,85.52,85.493,11.69686407]
[1773180369859,2.06141028,85.513,85.493,11.69686407]
[1773180370848,11.25861955,85.52,85.493,13.7391034]
[1773180371170,2.06141028,85.519,85.493,13.7391034]
[1773180371762,11.69330791,85.519,85.493,13.7391034]
[1773180371968,2.06141028,85.509,85.493,11.69686407]
[1773180373170,0.14216157,85.523,85.494,2.04223933]
[1773180373359,11.25861955,85.52,85.494,2.04223933]
[1773180374165,0.14216157,85.523,85.501,2.04223933]
[1773180375268,2.20357185,85.523,85.502,11.69563285]
[1773180376950,2.06141028,85.54,85.504,2.04223933]
[1773180377150,2.06141028,85.538,85.512,2.04223933]
[1773180377348,11.25861955,85.54,85.512,2.04223933]
[1773180377554,2.06141028,85.539,85.512,2.04223933]
[1773180379379,2.06141028,85.539,85.513,11.69412837]
[1773180381674,2.06141028,85.539,85.513,40.92944931]
[1773180384478,2.06141028,85.539,85.513,43.01898253]
[1773180384872,2.06141028,85.539,85.513,40.92944931]
[1773180385081,2.06141028,85.539,85.513,43.01898253]
[1773180385766,2.06141028,85.539,85.515,11.69385487]
[1773180386093,1.99449825,85.561,85.531,2.08953322]
[1773180386387,11.68674964,85.567,85.531,2.08953322]
[1773180386388,1.99449825,85.559,85.531,2.08953322]
[1773180386962,1.99449825,85.559,85.533,2.08953322]
[1773180387776,1.99449825,85.573,85.543,2.08953322]
[1773180388175,11.68606553,85.572,85.543,2.08953322]
[1773180388367,11.68606553,85.572,85.532,40.92035728]
[1773180388368,1.99449825,85.559,85.532,11.69153065]
[1773180388763,1.99449825,85.559,85.532,40.92035728]
[1773180389078,1.99449825,85.559,85.533,2.08953322]
[1773180390881,1.99449825,85.559,85.534,11.69125727]
[1773180391887,1.99449825,85.559,85.534,13.78079049]
[1773180392290,1.99449825,85.558,85.53,22.93669753]
[1773180392499,1.99449825,85.558,85.531,2.08953322]
[1773180394303,1.99449825,85.558,85.533,2.08953322]
[1773180395904,1.99449825,85.557,85.533,2.08953322]
[1773180396787,1.99449825,85.557,85.535,2.08953322]
[1773180398118,11.24496161,85.56,85.537,2.08953322]
[1773180398609,1.99449825,85.56,85.537,2.08953322]
[1773180403505,18.87170836,85.567,85.541,2.08953322]
[1773180404311,1.99449825,85.579,85.551,2.08953322]
[1773180405819,1.99449825,85.588,85.561,2.08953322]
[1773180406029,0.14216157,85.584,85.561,2.08953322]
[1773180408604,104.3,85.589,85.571,2.06230015]
[1773180409030,2.04588729,85.596,85.571,2.06230015]
[1773180409325,0.14216157,85.595,85.571,2.06230015]
[1773180409523,1.95589369,85.593,85.571,2.06230015]
[1773180409912,1.95589369,85.601,85.571,2.06230015]
[1773180410101,1.95589369,85.599,85.57,4.19563517]
[1773180410632,1.95589369,85.599,85.571,13.75736577]
[1773180411015,1.95589369,85.599,85.572,2.07116367]
[1773180411724,1.95589369,85.599,85.573,11.68592897]
[1773180412620,1.95589369,85.599,85.573,40.9007514]
[1773180412825,1.95589369,85.599,85.573,42.97191507]
[1773180413410,1.95589369,85.599,85.574,2.07116367]
[1773180413610,0.14216157,85.614,85.583,2.07116367]
[1773180414039,1.95589369,85.615,85.583,2.07116367]
[1773180414517,0.14216157,85.614,85.583,2.07116367]
[1773180415303,1.95589369,85.615,85.583,2.07116367]
[1773180415516,1.95589369,85.621,85.591,2.07116367]
[1773180415725,1.95589369,85.619,85.585,2.07116367]
[1773180416230,1.95589369,85.619,85.591,2.07116367]
[1773180417721,1.95589369,85.619,85.593,2.07116367]
[1773180418820,11.67918848,85.623,85.595,2.07116367]
[1773180419218,0.2,85.63,85.601,2.07116367]
[1773180420430,0.2,85.63,85.611,2.07116367]
[1773180420933,0.2,85.63,85.613,2.07116367]
[1773180422132,1.95589369,85.619,85.592,11.68333489]
[1773180422918,13.63561174,85.619,85.592,13.75449856]
[1773180423120,1.95589369,85.618,85.592,13.75449856]
[1773180427223,1.95589369,85.618,85.593,2.07116367]
[1773180428429,104.3,85.629,85.593,2.07116367]
[1773180428832,1.95589369,85.628,85.593,2.07116367]
[1773180429034,4.19487646,85.62,85.593,2.07116367]
[1773180429435,1.95589369,85.628,85.595,2.07116367]
[1773180429941,1.95589369,85.626,85.595,2.07116367]
[1773180431333,1.95589369,85.619,85.591,11.68347139]
[1773180432148,1.95589369,85.619,85.592,2.07116367]
[1773180437948,1.95589369,85.619,85.594,2.07116367]
[1773180440742,15.87439564,85.62,85.591,1.96070541]
[1773180440743,2.02727781,85.617,85.591,1.96070541]
[1773180440944,2.02727781,85.617,85.581,1.96070541]
[1773180441460,2.02727781,85.609,85.581,1.96070541]
[1773180443148,2.02727781,85.599,85.577,29.21345688]
[1773180443864,2.02727781,85.599,85.571,11.6862021]
[1773180444057,2.02727781,85.599,85.572,1.96070541]
[1773180445447,2.02727781,85.598,85.574,1.96070541]
[1773180445844,2.02727781,85.603,85.574,1.96070541]
[1773180447757,2.02727781,85.603,85.576,1.96070541]
[1773180449455,2.02727781,85.601,85.576,1.96070541]
[1773180450362,11.68197004,85.602,85.567,1.96070541]
[1773180450363,2.02727781,85.589,85.567,1.96070541]
[1773180451858,2.02727781,85.599,85.567,1.96070541]
[1773180452351,2.02727781,85.599,85.569,1.96070541]
[1773180453248,2.02727781,85.597,85.569,1.96070541]
[1773180454367,2.02727781,85.589,85.557,1.96070541]
[1773180454545,2.02727781,85.587,85.559,1.96070541]
[1773180456870,4.19487646,85.58,85.56,13.64840994]
[1773180457972,6.22215427,85.57,85.543,1.96070541]
[1773180458351,4.19487646,85.58,85.543,1.96070541]
[1773180458549,4.19487646,85.58,85.542,29.22508278]
[1773180458550,2.02727781,85.589,85.551,1.96070541]
[1773180458968,4.19487646,85.59,85.553,1.96070541]
[1773180459160,15.87717184,85.6,85.561,1.96070541]
[1773180459468,15.87717184,85.6,85.552,40.91079109]
[1773180459469,2.02727781,85.579,85.553,1.96070541]
[1773180459978,2.02727781,85.599,85.561,1.96070541]
[1773180460175,2.02727781,85.579,85.561,1.96070541]
[1773180460381,2.02727781,85.585,85.561,1.96070541]
[1773180460559,4.19487646,85.59,85.561,1.96070541]
[1773180460957,11.6837444,85.589,85.561,1.96070541]
[1773180461167,11.6837444,85.589,85.539,1.16905738]
[1773180461168,4.96693726,85.566,85.48,2.34228228]
[1773180461380,4.96693726,85.566,85.42,0.1]
[1773180461381,0.2,85.49,85.44,4.19487646]
[1773180461677,0.2,85.49,85.42,0.1]
[1773180461678,4.19487646,85.49,85.462,11.70109564]
[1773180461857,4.19487646,85.48,85.462,11.70109564]
[1773180462287,4.19487646,85.48,85.47,0.1]
[1773180462785,4.19487646,85.48,85.435,11.70480482]
[1773180462786,2.02727781,85.479,85.435,11.70480482]
[1773180462975,4.19487646,85.46,85.435,11.70480482]
[1773180463282,0.14216157,85.484,85.45,4.19487646]
[1773180463486,4.19487646,85.48,85.451,1.96070541]
[1773180463974,40.94289666,85.485,85.401,1.96070541]
[1773180463975,2.02727781,85.454,85.401,1.96070541]
[1773180464177,4.19487646,85.41,85.384,1.96070541]
[1773180464379,4.19487646,85.39,85.365,1.96070541]
[1773180464676,4.19487646,85.41,85.371,1.96070541]
[1773180464883,4.19487646,85.4,85.371,1.96070541]
[1773180465183,4.19487646,85.39,85.361,1.96070541]
[1773180465381,4.19487646,85.39,85.338,29.29519611]
[1773180465382,4.19487646,85.37,85.331,1.96070541]
[1773180465684,11.30386485,85.35,85.312,1.96070541]
[1773180465871,11.30386485,85.35,85.314,1.96070541]
[1773180466186,11.30386485,85.34,85.315,1.96070541]
[1773180466368,11.30386485,85.34,85.316,1.96070541]
[1773180466568,11.30386485,85.34,85.317,1.96070541]
[1773180466769,11.30386485,85.34,85.319,1.96070541]
[1773180466971,11.30386485,85.34,85.321,1.96070541]
[1773180467668,13.72967768,85.347,85.32,7.34439753]
[1773180467873,11.30386485,85.33,85.32,7.34439753]
[1773180468276,11.30386485,85.34,85.32,7.34439753]
[1773180468668,2.01275214,85.38,85.332,11.7189331]
[1773180468867,11.30386485,85.36,85.333,2.07058863]
[1773180469497,11.30386485,85.35,85.333,2.07058863]
[1773180469693,11.30386485,85.36,85.333,2.07058863]
[1773180470677,11.30386485,85.36,85.32,7.34439753]
[1773180470678,0.14216157,85.358,85.32,11.72055545]
[1773180470884,2.06037131,85.355,85.315,2.04426608]
[1773180471205,11.71536352,85.358,85.315,2.04426608]
[1773180471206,11.30386485,85.33,85.315,2.04426608]
[1773180471504,11.30386485,85.34,85.315,2.04426608]
[1773180472569,11.30386485,85.34,85.315,13.76553432]
[1773180472884,11.30386485,85.36,85.321,2.04426608]
[1773180473090,11.30386485,85.37,85.331,2.04426608]
[1773180473697,11.29914035,85.37,85.331,2.04426608]
[1773180474086,11.29914035,85.36,85.331,2.04426608]
[1773180474972,11.29914035,85.36,85.332,11.7189331]
[1773180475172,2.06037131,85.373,85.332,11.7189331]
[1773180475173,2.06037131,85.391,85.341,2.04426608]
[1773180475374,11.29914035,85.37,85.341,1.59123143]
[1773180475591,11.29914035,85.38,85.341,1.59123143]
[1773180476099,11.29914035,85.37,85.341,1.59123143]
[1773180476597,11.29914035,85.38,85.341,1.59123143]
[1773180476812,11.29914035,85.38,85.34,11.29914035]
[1773180476813,11.29914035,85.38,85.342,0.58929014]
[1773180477179,13.35951166,85.38,85.343,11.71742263]
[1773180477402,13.35951166,85.38,85.344,2.04426608]
[1773180477899,11.29914035,85.37,85.344,2.04426608]
[1773180479100,11.29914035,85.37,85.346,2.04426608]
[1773180479276,23.011618,85.38,85.346,2.04426608]
[1773180479484,11.29914035,85.37,85.346,2.04426608]
[1773180480577,11.29914035,85.36,85.337,2.04426608]
[1773180480777,11.29914035,85.36,85.323,2.04426608]
[1773180480990,11.29914035,85.36,85.325,2.04426608]
[1773180481215,11.29914035,85.36,85.328,11.71948246]
[1773180481506,11.29914035,85.36,85.327,2.04426608]
[1773180481507,11.29914035,85.35,85.327,2.04426608]
[1773180482533,13.77559758,85.359,85.328,2.04426608]
[1773180482713,11.29914035,85.36,85.328,2.04426608]
[1773180482915,11.29914035,85.38,85.341,2.04426608]
[1773180483137,11.29914035,85.37,85.341,2.04426608]
[1773180483436,11.29914035,85.37,85.343,2.04426608]
[1773180484130,11.71111033,85.389,85.351,2.04426608]
[1773180484903,11.29914035,85.38,85.351,2.04426608]
[1773180485910,11.29914035,85.38,85.353,2.04426608]
[1773180486109,11.29914035,85.4,85.361,2.04426608]
[1773180486417,11.29914035,85.39,85.361,2.04426608]
[1773180486606,23.00879124,85.4,85.361,2.04426608]
[1773180487933,104.3,85.712,85.352,41.00665479]
[1773180487934,11.29914035,85.42,85.381,2.04426608]
[1773180488115,11.29914035,85.41,85.381,2.04426608]
[1773180488726,1.46318623,85.43,85.362,41.59045484]
[1773180488727,23.00600516,85.42,85.391,2.04426608]
[1773180489628,11.70562689,85.429,85.391,2.04426608]
[1773180490013,11.70562689,85.429,85.401,2.04426608]
[1773180492219,11.29914035,85.43,85.403,2.04426608]
[1773180493135,11.70431176,85.439,85.411,2.04426608]
[1773180493320,11.29914035,85.44,85.41,11.29914035]
[1773180493519,2.06037131,85.439,85.403,2.04426608]
[1773180493833,11.29914035,85.44,85.411,2.04426608]
[1773180494517,11.70425683,85.439,85.411,13.75225376]
[1773180494718,11.70425683,85.439,85.412,2.04426608]
[1773180495414,2.06037131,85.438,85.406,11.70869703]
[1773180495731,11.70425683,85.439,85.39,2.04426608]
[1773180495732,2.06037131,85.419,85.39,2.04426608]
[1773180495913,11.29914035,85.4,85.372,2.04426608]
[1773180496631,11.70973898,85.399,85.373,11.71330514]
[1773180496831,2.06037131,85.409,85.374,2.04426608]
[1773180497032,11.29914035,85.42,85.381,2.04426608]
[1773180497221,11.29914035,85.41,85.381,2.04426608]
[1773180498640,11.29914035,85.41,85.373,40.99656799]
[1773180498641,11.70699727,85.419,85.391,2.04426608]
[1773180498836,11.70699727,85.419,85.392,11.71069889]
[1773180499337,11.70699727,85.419,85.393,2.04426608]
[1773180502937,40.97449045,85.419,85.393,2.04426608]
[1773180503256,2.09511463,85.418,85.384,2.06225964]
[1773180503721,11.70699727,85.419,85.384,2.06225964]
[1773180503921,11.70699727,85.419,85.391,2.06225964]
[1773180504324,11.70699727,85.419,85.392,11.71069889]
[1773180504542,11.70699727,85.419,85.393,2.06225964]
[1773180505942,11.70699727,85.419,85.384,0.58789062]
[1773180505943,11.29914035,85.41,85.384,0.58789062]
[1773180506146,11.29914035,85.39,85.36,2.06225964]
[1773180506446,11.29914035,85.38,85.36,2.06225964]
[1773180506633,11.71248199,85.379,85.361,2.06225964]
[1773180506943,11.71248199,85.379,85.353,2.06225964]
[1773180507145,11.71248199,85.379,85.341,29.2939422]
[1773180507146,11.71248199,85.379,85.344,2.06225964]
[1773180507147,11.29914035,85.36,85.344,2.06225964]
[1773180507344,11.29914035,85.36,85.26,11.29914035]
[1773180507345,11.29914035,85.35,85.328,2.06225964]
[1773180508442,2.08158634,85.362,85.328,2.06225964]
[1773180508443,11.29914035,85.36,85.328,2.06225964]
[1773180508619,11.29914035,85.35,85.329,13.78160476]
[1773180508822,11.29914035,85.34,85.322,2.06225964]
[1773180509831,13.38359846,85.35,85.322,2.06225964]
[1773180510435,11.29914035,85.34,85.322,2.06225964]
[1773180510746,11.29914035,85.34,85.323,11.72016923]
[1773180511943,11.29914035,85.34,85.311,2.06225964]
[1773180511944,11.71797185,85.339,85.311,2.06225964]
[1773180512137,11.71797185,85.339,85.309,11.72206236]
[1773180512138,11.29914035,85.36,85.321,2.06225964]
[1773180512733,11.71522627,85.359,85.322,11.7203066]
[1773180512939,11.71522627,85.359,85.323,2.06225964]
[1773180513249,40.9984889,85.369,85.331,2.06225964]
[1773180513441,11.29914035,85.36,85.331,2.06225964]
[1773180514941,11.29914035,85.35,85.326,11.71974763]
[1773180515131,11.29914035,85.35,85.327,2.06225964]
[1773180515343,2.09511463,85.358,85.327,2.06225964]
[1773180515532,41.00329196,85.359,85.327,2.06225964]
[1773180515849,11.29914035,85.35,85.327,2.06225964]
[1773180516051,11.71522627,85.359,85.327,2.06225964]
[1773180516266,11.29914035,85.35,85.327,2.06225964]
[1773180517848,11.29914035,85.35,85.329,2.06225964]
[1773180519338,0.14216157,85.375,85.302,0.14216157]
[1773180519339,11.29914035,85.36,85.331,2.06225964]
[1773180520358,23.01436024,85.36,85.331,2.06225964]
[1773180521350,23.01436024,85.36,85.333,2.06225964]
[1773180524768,11.29914035,85.35,85.333,2.06225964]
[1773180524944,52.30208282,85.36,85.333,13.78098858]
[1773180525146,54.39719745,85.36,85.333,13.78098858]
[1773180525362,54.39719745,85.36,85.334,2.06225964]
[1773180525771,11.29914035,85.36,85.334,2.06225964]
[1773180525958,11.71385397,85.369,85.334,2.06225964]
[1773180526556,11.29914035,85.36,85.334,2.06225964]
[1773180526954,11.71522627,85.359,85.336,2.06225964]
[1773180530364,2.17510079,85.396,85.351,2.25508333]
[1773180530668,2.17510079,85.396,85.36,11.29914035]
[1773180530864,11.29914035,85.39,85.361,2.25508333]
[1773180531054,2.17510079,85.389,85.361,2.25508333]
[1773180531753,11.71124748,85.388,85.362,11.71481455]
[1773180531955,2.17510079,85.387,85.362,11.71481455]
[1773180532562,2.17510079,85.387,85.357,11.7154371]
[1773180534454,2.17510079,85.385,85.353,2.25508333]
[1773180537575,2.17510079,85.383,85.355,2.25508333]
[1773180538676,2.17510079,85.383,85.354,11.71591255]
[1773180538677,2.17510079,85.389,85.361,2.25508333]
[1773180538868,2.17510079,85.397,85.361,2.25508333]
[1773180540376,11.70836797,85.409,85.341,58.58782421]
[1773180540377,13.88374293,85.407,85.379,2.25508333]
[1773180540872,2.17510079,85.399,85.371,2.25508333]
[1773180541075,2.17510079,85.399,85.363,2.25508333]
[1773180541653,2.17510079,85.399,85.371,2.25508333]
[1773180542467,2.17510079,85.397,85.362,29.28703638]
[1773180542684,2.17510079,85.389,85.359,2.25508333]
[1773180543766,11.71124748,85.388,85.363,11.71467731]
[1773180543967,11.29367564,85.39,85.364,2.25508333]
[1773180544368,13.88532964,85.396,85.364,2.25508333]
[1773180544568,2.17510079,85.395,85.364,2.25508333]
[1773180544992,11.29367564,85.39,85.364,2.25508333]
[1773180545201,13.46877643,85.39,85.364,2.25508333]
[1773180545689,2.17510079,85.39,85.364,2.25508333]
[1773180545860,2.17510079,85.39,85.366,2.25508333]
[1773180547890,2.17510079,85.39,85.368,2.25508333]
[1773180549695,11.71010326,85.397,85.368,2.25508333]
[1773180550882,2.17510079,85.396,85.369,11.71385397]
[1773180551075,2.17510079,85.389,85.359,2.25508333]
[1773180551581,2.17510079,85.389,85.361,2.25508333]
[1773180553269,2.17510079,85.389,85.363,2.25508333]
[1773180555580,2.17510079,85.389,85.364,13.96962341]
[1773180556092,11.71124748,85.388,85.364,13.96962341]
[1773180556593,13.88634827,85.388,85.364,13.96962341]
[1773180556887,2.17510079,85.387,85.364,13.96962341]
[1773180558897,2.17510079,85.387,85.365,2.25508333]
[1773180561384,2.17510079,85.387,85.367,2.26873588]
[1773180562192,13.86870878,85.394,85.367,2.26873588]
[1773180563103,2.15818663,85.393,85.367,2.26873588]
[1773180563705,2.15818663,85.393,85.369,2.26873588]
[1773180564089,2.15818663,85.393,85.371,2.26873588]
[1773180564501,11.70982653,85.399,85.371,2.26873588]
[1773180564702,11.70982653,85.399,85.368,40.99896916]
[1773180564703,2.15818663,85.415,85.381,2.26873588]
[1773180564904,2.15818663,85.415,85.39,6.48399594]
[1773180565200,2.15818663,85.415,85.391,2.26873588]
[1773180566005,2.15818663,85.413,85.392,11.71069889]
[1773180567496,2.15818663,85.413,85.393,2.26873588]
[1773180567705,2.15818663,85.421,85.393,2.26873588]
[1773180567904,2.15818663,85.421,85.392,11.71069889]
[1773180567905,13.86504381,85.421,85.395,2.26873588]
[1773180568408,2.15818663,85.427,85.401,2.26873588]
[1773180568713,46.78579827,85.497,85.394,40.98648615]
[1773180568714,2.15818663,85.438,85.411,2.26873588]
[1773180569201,2.15818663,85.438,85.42,4.21526006]
[1773180569710,2.15818663,85.444,85.4,4.21526006]
[1773180570009,0.2,85.45,85.412,2.26873588]
[1773180570010,2.15818663,85.442,85.412,2.26873588]
[1773180571907,4.41526006,85.45,85.39,4.21526006]
[1773180571908,2.15818663,85.427,85.39,4.21526006]
[1773180572091,2.15818663,85.419,85.381,2.26873588]
[1773180572501,2.15818663,85.419,85.382,2.26873588]
[1773180572718,40.9701737,85.428,85.391,2.26873588]
[1773180573022,2.15818663,85.427,85.391,2.26873588]
[1773180574014,2.15818663,85.425,85.391,2.26873588]
[1773180574223,2.15818663,85.419,85.38,4.21526006]
[1773180574409,2.15818663,85.419,85.382,2.26873588]
[1773180574913,4.21526006,85.42,85.382,2.26873588]
[1773180574914,2.15818663,85.409,85.382,2.26873588]